{"text_format":"1","workbook":"xlsx","n_sheets":8,"sheets":["Überblick","Bestenliste","Erläuterungen","Einstellungen","Verbände","Altersklassen","Disziplinen","Fehler"],"not_rendered":{"charts":0,"images":43,"macros":1,"external_links":0,"defined_names":5,"comments":0,"pivot_tables":0},"unopened":[],"bounds":{"document_bytes":16777216,"sheet_cells":100000,"rows_first":2000,"rows_last":500,"rows_between":2000,"halvings":0,"cell_chars":16384,"cell_head_chars":4096},"cells_cut":0,"cells_raw":0,"read":"whole","date_system":"1900"}

{"sheet":"Überblick","index":0,"n_rows":28,"n_cols":3,"rows_kept":28,"cut":false,"hidden":false,"merged":[[1,1,1,3],[20,1,20,3],[23,1,23,3],[24,1,24,3]]}
[]
[null,"Dieses Excel mit Makros erzeugt eine aufbereitete Bestenliste"]
[]
[null,null,"1. Laden Sie die Online Bestenliste als CSV Datei herunter"]
[null,null,"2. Klicken Sie auf den nacholgenden Knopf"]
[]
[]
[]
[]
[null,null,"3. Wählen Sie ihre Einstellungen im Formular:"]
[null,null,"    ... Wählen Sie den Verband aus"]
[null,null,"... Wie soll der Name dargestellt werden?"]
[null,null,"... Soll der Jahrgang 2-stellig oder 4-stellig angezeigt werden?"]
[null,null,"... Soll das Datum ohne Jahr dargestellt werden?"]
[null,null,"... Wollen sie einen Dialog zur Auswahl der CSV Datei und für Experteneinstellungen?"]
[null,null,"... Wieviele Zeilen sollen in den Altersklassen angezeigt werden?"]
[null,null,"... Wie ist der Pfad für das Einlesen der CSV Datei?"]
[null,null,"... Wie ist der Pfad unter dem eine .txt und .pdf Datei erzeugt wird?"]
[null,null,"4. Klicken Sie auf \"Weiter\" oder \"Abbrechen\""]
[]
[null,"Falls die Bestenliste nicht zufriedenstellend dargestellt wird, können Sie im Expertenmodus weitere Einstellungen vornehmen"]
[null,null,"1. Sie können für die Ausgabefelder die Spalte und die Zeile wählen. Auf die Konsistenz müssen Sie selbst achten!"]
[null,null,"2. Sie Können pro Altersklasse und Disziplin Mindestleistungen setzen"]
[null,"Vorsicht!"]
[null,"Gegebenfalls müssen sie noch in den Blättern \"Altersklassen\" und \"Disziplinen\" die Bezeichnungen an die Bezeichnungen in der CSV Datei anpassen, da Seltec nicht die Standard DLV Bezeichnungen nutzt."]
[null,null,"3. Im Blatt \"Verbände\" können Sie für die Verbände ein Logo hinterlegen. Dies muss dann den Namen der Verbands ID haben. Ein Vereinslogo in Zeile 21 \"mein Verein\" braucht den Namen VER."]
[]
[null,null,"Version: 2022-001"]

{"sheet":"Bestenliste","index":1,"n_rows":1,"n_cols":6,"rows_kept":1,"cut":false,"hidden":false,"merged":[]}
[null,null,null,null,"Stand:","01.11.2022"]

{"sheet":"Erläuterungen","index":2,"n_rows":286,"n_cols":1,"rows_kept":286,"cut":false,"hidden":true,"merged":[]}
["Grundeinstellungen"]
[]
[]
[]
[]
[]
[]
[]
[]
[]
[]
[]
[]
[]
[]
[]
[]
[]
[]
[]
[]
[]
[]
[]
[]
[]
[]
[]
[]
[]
[]
[]
[]
[]
[]
[]
["Einstellungen - Detail (mit Dialog)"]
["1. Teil"]
[]
[]
[]
[]
[]
[]
[]
[]
[]
[]
[]
[]
[]
[]
[]
[]
[]
[]
[]
["2. Teil"]
[]
[]
[]
[]
[]
[]
[]
[]
[]
[]
[]
[]
[]
[]
[]
[]
[]
[]
[]
[]
[]
[]
[]
["Anmerkung: "]
["Wird der Wind nicht als separate Spalte gewählt (Spalte = 0, Zeile = 0), dann wird der Wind in Klammern direkt mit der Leistung ausgegeben."]
["Wird das Land (des Ortes) nicht als separate Spalte gewählt (Spalte = 0, Zeile = 0), dann wird das Land in Klammern direkt mit dem Ort ausgegeben (3-stelliger Ländercode)."]
[]
["3. Teil"]
[]
[]
[]
[]
[]
[]
[]
[]
[]
[]
[]
[]
[]
["Verbands- / Vereins-Logo"]
[]
[]
[]
[]
[]
[]
[]
[]
[]
[]
[]
[]
[]
[]
[]
[]
[]
[]
[]
[]
[]
[]
[]
[]
[]
[]
[]
[]
[]
[]
[]
[]
[]
[]
[]
[]
[]
[]
[]
["Bestenliste"]
["Das Layout kann nun noch nach eigenen Wünschen angepasst werden"]
[]
[]
[]
[]
[]
[]
[]
[]
[]
[]
[]
[]
[]
[]
[]
[]
[]
[]
[]
[]
[]
[]
[]
[]
[]
[]
[]
[]
[]
[]
[]
[]
[]
[]
[]
[]
[]
["Zusätzliche Dateien"]
["Neben dem .xlsx werden noch Dateien im Format .pdf und .txt erzeugt"]
[]
["1. .txt Datei"]
[]
[]
[]
[]
[]
[]
[]
[]
[]
[]
[]
[]
[]
[]
[]
[]
[]
[]
[]
[]
[]
[]
[]
[]
[]
[]
[]
[]
[]
[]
[]
["2. .pdf Datei"]
[]
[]
[]
[]
[]
[]
[]
[]
[]
[]
[]
[]
[]
[]
[]
[]
[]
[]
[]
[]
[]
[]
[]
[]
[]
[]
[]
[]
[]
[]
[]
[]
[]
["Anpassungen"]
["Sie können jederzeit das Layout des erzeugten Sheets \"Bestenliste\" nach ihren Wünschen in Excel anpassen und dann das Sheet als .pdf speichern"]
[]
[]
[]
[]
[]
[]
[]
[]
[]
[]
[]
[]
[]
[]
[]
[]
[]
[]
[]
[]
[]
[]
[]
[]
[]
[]
[]
[]
[]
[]
[]
[]
[]
[]
[]
[]
["Drücken sie die rechte Maustaste"]

{"sheet":"Einstellungen","index":3,"n_rows":472,"n_cols":4,"rows_kept":472,"cut":false,"hidden":true,"merged":[]}
[null,"Version: 2022-001",null,"nachname, vorname"]
[null,null,null,"vorname nachname"]
[]
[null,null,null,"Ja"]
[null,null,null,"Nein"]
[]
[]
[null,"Allgemein"]
["Verband/Verein"]
[]
["Mit Details bzw. Dialog?","Nein"]
["Name als...","vorname nachname"]
["Jahrgang 2-stellig?","Nein"]
["Datum ohne Jahr?","Nein"]
["MK Detail vereinfacht?","Ja"]
[]
["Pfad (einlesen)"]
["Pfad (ausgeben)"]
["Bestenlistenname"]
[null,"Max. Anzahl Einträge / Sortierung"]
["Allgemein","10"]
["Aktive","30"]
["Junior:innen","10"]
["Jugend","20"]
["Schüler:innen","20"]
["Senior:innen","10"]
["Sortierung (Standard)"]
["Feld","Spalte","Zeile"]
["Name",3,1]
["Jahrgang",4,1]
["Verein",5,1]
["Leistung",1,1]
["Wind",2,1]
["Ort",7,1]
["Datum",6,1]
["Staffelteilnehmer",3,2]
["MK Details",3,2]
["ID",0,0]
["Nationalität",0,0]
["Land (des Ortes)",0,0]
["Vorname",0,0]
["Nachname",0,0]
["Platz",0,0]
["Rang",0,0]
["Veranstaltung",0,0]
["Verein (bei Staffeln)",3,1]
["Landesverband",0,0]
["Bezirk",0,0]
["Kreis",0,0]
[]
["Altersklasse","Disziplin","Min. Leistung"]
[]
[]
[]
[]
[]
[]
[]
[]
[]
[]
[]
[]
[]
[]
[]
[]
[]
[]
[]
[]
[]
[]
[]
[]
[]
[]
[]
[]
[]
[]
[]
[]
[]
[]
[]
[]
[]
[]
[]
[]
[]
[]
[]
[]
[]
[]
[]
[]
[]
[]
[]
[]
[]
[]
[]
[]
[]
[]
[]
[]
[]
[]
[]
[]
[]
[]
[]
[]
[]
[]
[]
[]
[]
[]
[]
[]
[]
[]
[]
[]
[]
[]
[]
[]
[]
[]
[]
[]
[]
[]
[]
[]
[]
[]
[]
[]
[]
[]
[]
[]
[]
[]
[]
[]
[]
[]
[]
[]
[]
[]
[]
[]
[]
[]
[]
[]
[]
[]
[]
[]
[]
[]
[]
[]
[]
[]
[]
[]
[]
[]
[]
[]
[]
[]
[]
[]
[]
[]
[]
[]
[]
[]
[]
[]
[]
[]
[]
[]
[]
[]
[]
[]
[]
[]
[]
[]
[]
[]
[]
[]
[]
[]
[]
[]
[]
[]
[]
[]
[]
[]
[]
[]
[]
[]
[]
[]
[]
[]
[]
[]
[]
[]
[]
[]
[]
[]
[]
[]
[]
[]
[]
[]
[]
[]
[]
[]
[]
[]
[]
[]
[]
["Altersklasse","Sortierreihenfolge (nicht Standard)"]
[{"$f":"Altersklassen!A2","v":"Kinder M10"},{"$f":"Altersklassen!H2","v":10}]
[{"$f":"Altersklassen!A3","v":"Kinder M11"},{"$f":"Altersklassen!H3","v":11}]
[{"$f":"Altersklassen!A4","v":"Jugend M12"},{"$f":"Altersklassen!H4","v":13}]
[{"$f":"Altersklassen!A5","v":"Jugend M13"},{"$f":"Altersklassen!H5","v":14}]
[{"$f":"Altersklassen!A6","v":"Jugend M14"},{"$f":"Altersklassen!H6","v":16}]
[{"$f":"Altersklassen!A7","v":"Jugend M15"},{"$f":"Altersklassen!H7","v":17}]
[{"$f":"Altersklassen!A8","v":"männliche Kinder U12"},{"$f":"Altersklassen!H8","v":12}]
[{"$f":"Altersklassen!A9","v":"männliche Jugend U14"},{"$f":"Altersklassen!H9","v":15}]
[{"$f":"Altersklassen!A10","v":"männliche Jugend U16"},{"$f":"Altersklassen!H10","v":18}]
[{"$f":"Altersklassen!A11","v":"männliche Jugend U18"},{"$f":"Altersklassen!H11","v":23}]
[{"$f":"Altersklassen!A12","v":"männliche Jugend U20"},{"$f":"Altersklassen!H12","v":24}]
[{"$f":"Altersklassen!A13","v":"Junioren U23"},{"$f":"Altersklassen!H13","v":25}]
[{"$f":"Altersklassen!A14","v":"Männer"},{"$f":"Altersklassen!H14","v":26}]
[{"$f":"Altersklassen!A15","v":"Senioren M30"},{"$f":"Altersklassen!H15","v":42}]
[{"$f":"Altersklassen!A16","v":"Senioren M35"},{"$f":"Altersklassen!H16","v":43}]
[{"$f":"Altersklassen!A17","v":"Senioren M40"},{"$f":"Altersklassen!H17","v":44}]
[{"$f":"Altersklassen!A18","v":"Senioren M45"},{"$f":"Altersklassen!H18","v":45}]
[{"$f":"Altersklassen!A19","v":"Senioren M50"},{"$f":"Altersklassen!H19","v":46}]
[{"$f":"Altersklassen!A20","v":"Senioren M55"},{"$f":"Altersklassen!H20","v":47}]
[{"$f":"Altersklassen!A21","v":"Senioren M60"},{"$f":"Altersklassen!H21","v":48}]
[{"$f":"Altersklassen!A22","v":"Senioren M65"},{"$f":"Altersklassen!H22","v":49}]
[{"$f":"Altersklassen!A23","v":"Senioren M70"},{"$f":"Altersklassen!H23","v":50}]
[{"$f":"Altersklassen!A24","v":"Senioren M75"},{"$f":"Altersklassen!H24","v":51}]
[{"$f":"Altersklassen!A25","v":"Senioren M80"},{"$f":"Altersklassen!H25","v":52}]
[{"$f":"Altersklassen!A26","v":"Senioren M85"},{"$f":"Altersklassen!H26","v":53}]
[{"$f":"Altersklassen!A27","v":"Senioren M90"},{"$f":"Altersklassen!H27","v":54}]
[{"$f":"Altersklassen!A28","v":"Senioren M95"},{"$f":"Altersklassen!H28","v":55}]
[{"$f":"Altersklassen!A29","v":"Kinder W10"},{"$f":"Altersklassen!H29","v":1}]
[{"$f":"Altersklassen!A30","v":"Kinder W11"},{"$f":"Altersklassen!H30","v":2}]
[{"$f":"Altersklassen!A31","v":"Jugend W12"},{"$f":"Altersklassen!H31","v":4}]
[{"$f":"Altersklassen!A32","v":"Jugend W13"},{"$f":"Altersklassen!H32","v":5}]
[{"$f":"Altersklassen!A33","v":"Jugend W14"},{"$f":"Altersklassen!H33","v":7}]
[{"$f":"Altersklassen!A34","v":"Jugend W15"},{"$f":"Altersklassen!H34","v":8}]
[{"$f":"Altersklassen!A35","v":"weibliche Kinder U12"},{"$f":"Altersklassen!H35","v":3}]
[{"$f":"Altersklassen!A36","v":"weibliche Jugend U14"},{"$f":"Altersklassen!H36","v":6}]
[{"$f":"Altersklassen!A37","v":"weibliche Jugend U16"},{"$f":"Altersklassen!H37","v":9}]
[{"$f":"Altersklassen!A38","v":"weibliche Jugend U18"},{"$f":"Altersklassen!H38","v":19}]
[{"$f":"Altersklassen!A39","v":"weibliche Jugend U20"},{"$f":"Altersklassen!H39","v":20}]
[{"$f":"Altersklassen!A40","v":"Juniorinnen U23"},{"$f":"Altersklassen!H40","v":21}]
[{"$f":"Altersklassen!A41","v":"Frauen"},{"$f":"Altersklassen!H41","v":22}]
[{"$f":"Altersklassen!A42","v":"Seniorinnen W30"},{"$f":"Altersklassen!H42","v":28}]
[{"$f":"Altersklassen!A43","v":"Seniorinnen W35"},{"$f":"Altersklassen!H43","v":29}]
[{"$f":"Altersklassen!A44","v":"Seniorinnen W40"},{"$f":"Altersklassen!H44","v":30}]
[{"$f":"Altersklassen!A45","v":"Seniorinnen W45"},{"$f":"Altersklassen!H45","v":31}]
[{"$f":"Altersklassen!A46","v":"Seniorinnen W50"},{"$f":"Altersklassen!H46","v":32}]
[{"$f":"Altersklassen!A47","v":"Seniorinnen W55"},{"$f":"Altersklassen!H47","v":33}]
[{"$f":"Altersklassen!A48","v":"Seniorinnen W60"},{"$f":"Altersklassen!H48","v":34}]
[{"$f":"Altersklassen!A49","v":"Seniorinnen W65"},{"$f":"Altersklassen!H49","v":35}]
[{"$f":"Altersklassen!A50","v":"Seniorinnen W70"},{"$f":"Altersklassen!H50","v":36}]
[{"$f":"Altersklassen!A51","v":"Seniorinnen W75"},{"$f":"Altersklassen!H51","v":37}]
[{"$f":"Altersklassen!A52","v":"Seniorinnen W80"},{"$f":"Altersklassen!H52","v":38}]
[{"$f":"Altersklassen!A53","v":"Seniorinnen W85"},{"$f":"Altersklassen!H53","v":39}]
[{"$f":"Altersklassen!A54","v":"Seniorinnen W90"},{"$f":"Altersklassen!H54","v":40}]
[{"$f":"Altersklassen!A55","v":"Seniorinnen W95"},{"$f":"Altersklassen!H55","v":41}]
[{"$f":"Altersklassen!A56","v":"Männer/Frauen gemischt"},{"$f":"Altersklassen!H56","v":27}]
["Disziplin","Sortierreihenfolge (nicht Standard)"]
[{"$f":"Disziplinen!B2","v":"50 m"},{"$f":"Disziplinen!L2","v":1}]
[{"$f":"Disziplinen!B3","v":"60 m"},{"$f":"Disziplinen!L3","v":2}]
[{"$f":"Disziplinen!B4","v":"75 m"},{"$f":"Disziplinen!L4","v":3}]
[{"$f":"Disziplinen!B5","v":"100 m"},{"$f":"Disziplinen!L5","v":4}]
[{"$f":"Disziplinen!B6","v":"200 m"},{"$f":"Disziplinen!L6","v":5}]
[{"$f":"Disziplinen!B7","v":"300 m"},{"$f":"Disziplinen!L7","v":6}]
[{"$f":"Disziplinen!B8","v":"400 m"},{"$f":"Disziplinen!L8","v":7}]
[{"$f":"Disziplinen!B9","v":"600 m"},{"$f":"Disziplinen!L9","v":8}]
[{"$f":"Disziplinen!B10","v":"800 m"},{"$f":"Disziplinen!L10","v":9}]
[{"$f":"Disziplinen!B11","v":"1.000 m"},{"$f":"Disziplinen!L11","v":10}]
[{"$f":"Disziplinen!B12","v":"1.500 m"},{"$f":"Disziplinen!L12","v":11}]
[{"$f":"Disziplinen!B13","v":"1 Meile"},{"$f":"Disziplinen!L13","v":12}]
[{"$f":"Disziplinen!B14","v":"2.000 m"},{"$f":"Disziplinen!L14","v":13}]
[{"$f":"Disziplinen!B15","v":"3.000 m"},{"$f":"Disziplinen!L15","v":14}]
[{"$f":"Disziplinen!B16","v":"5.000 m"},{"$f":"Disziplinen!L16","v":15}]
[{"$f":"Disziplinen!B17","v":"10.000 m"},{"$f":"Disziplinen!L17","v":16}]
[{"$f":"Disziplinen!B18","v":"5 km Straße"},{"$f":"Disziplinen!L18","v":17}]
[{"$f":"Disziplinen!B19","v":"5 km Straße Mannschaft"},{"$f":"Disziplinen!L19","v":18}]
[{"$f":"Disziplinen!B20","v":"7,5 km Straße"},{"$f":"Disziplinen!L20","v":19}]
[{"$f":"Disziplinen!B21","v":"7,5 km Straße Mannschaft"},{"$f":"Disziplinen!L21","v":20}]
[{"$f":"Disziplinen!B22","v":"10 km Straße"},{"$f":"Disziplinen!L22","v":21}]
[{"$f":"Disziplinen!B23","v":"10 km Straße Mannschaft"},{"$f":"Disziplinen!L23","v":22}]
[{"$f":"Disziplinen!B24","v":"15 km Straße"},{"$f":"Disziplinen!L24","v":23}]
[{"$f":"Disziplinen!B25","v":"15 km Straße Mannschaft"},{"$f":"Disziplinen!L25","v":24}]
[{"$f":"Disziplinen!B26","v":"20 km Straße"},{"$f":"Disziplinen!L26","v":25}]
[{"$f":"Disziplinen!B28","v":"Halbmarathon"},{"$f":"Disziplinen!L28","v":27}]
[{"$f":"Disziplinen!B29","v":"Halbmarathon Mannschaft"},{"$f":"Disziplinen!L29","v":28}]
[{"$f":"Disziplinen!B30","v":"25 km Straße"},{"$f":"Disziplinen!L30","v":29}]
[{"$f":"Disziplinen!B31","v":"25 km Straße Mannschaft"},{"$f":"Disziplinen!L31","v":30}]
[{"$f":"Disziplinen!B32","v":"Marathon"},{"$f":"Disziplinen!L32","v":31}]
[{"$f":"Disziplinen!B33","v":"Marathon Mannschaft"},{"$f":"Disziplinen!L33","v":32}]
[{"$f":"Disziplinen!B34","v":"50 km Straße"},{"$f":"Disziplinen!L34","v":33}]
[{"$f":"Disziplinen!B35","v":"100 km Straße"},{"$f":"Disziplinen!L35","v":34}]
[{"$f":"Disziplinen!B36","v":"100 km Straße Mannschaft"},{"$f":"Disziplinen!L36","v":35}]
[{"$f":"Disziplinen!B27","v":"Stundenlauf"},{"$f":"Disziplinen!L27","v":26}]
[{"$f":"Disziplinen!B37","v":"24-Stundenlauf"},{"$f":"Disziplinen!L37","v":36}]
[{"$f":"Disziplinen!B38","v":"60 m Hürden"},{"$f":"Disziplinen!L38","v":37}]
[{"$f":"Disziplinen!B39","v":"60 m Hürden 0,686 m"},{"$f":"Disziplinen!L39","v":38}]
[{"$f":"Disziplinen!B40","v":"60 m Hürden 0,762 m"},{"$f":"Disziplinen!L40","v":39}]
[{"$f":"Disziplinen!B41","v":"60 m Hürden 0,838 m"},{"$f":"Disziplinen!L41","v":40}]
[{"$f":"Disziplinen!B42","v":"60 m Hürden 0,914 m"},{"$f":"Disziplinen!L42","v":41}]
[{"$f":"Disziplinen!B43","v":"60 m Hürden 0,991 m"},{"$f":"Disziplinen!L43","v":42}]
[{"$f":"Disziplinen!B44","v":"60 m Hürden 1,067 m"},{"$f":"Disziplinen!L44","v":43}]
[{"$f":"Disziplinen!B45","v":"80 m Hürden"},{"$f":"Disziplinen!L45","v":44}]
[{"$f":"Disziplinen!B46","v":"80 m Hürden 0,686 m"},{"$f":"Disziplinen!L46","v":45}]
[{"$f":"Disziplinen!B47","v":"80 m Hürden 0,762 m"},{"$f":"Disziplinen!L47","v":46}]
[{"$f":"Disziplinen!B48","v":"80 m Hürden 0,838 m"},{"$f":"Disziplinen!L48","v":47}]
[{"$f":"Disziplinen!B49","v":"100 m Hürden"},{"$f":"Disziplinen!L49","v":48}]
[{"$f":"Disziplinen!B50","v":"100 m Hürden 0,762 m"},{"$f":"Disziplinen!L50","v":49}]
[{"$f":"Disziplinen!B51","v":"100 m Hürden 0,838 m"},{"$f":"Disziplinen!L51","v":50}]
[{"$f":"Disziplinen!B52","v":"100 m Hürden 0,914 m"},{"$f":"Disziplinen!L52","v":51}]
[{"$f":"Disziplinen!B53","v":"110 m Hürden"},{"$f":"Disziplinen!L53","v":52}]
[{"$f":"Disziplinen!B54","v":"110 m Hürden 0,762 m"},{"$f":"Disziplinen!L54","v":53}]
[{"$f":"Disziplinen!B55","v":"110 m Hürden 0,914 m"},{"$f":"Disziplinen!L55","v":54}]
[{"$f":"Disziplinen!B56","v":"110 m Hürden 0,991 m"},{"$f":"Disziplinen!L56","v":55}]
[{"$f":"Disziplinen!B57","v":"110 m Hürden 1,067 m"},{"$f":"Disziplinen!L57","v":56}]
[{"$f":"Disziplinen!B58","v":"200 m Hürden"},{"$f":"Disziplinen!L58","v":57}]
[{"$f":"Disziplinen!B59","v":"300 m Hürden"},{"$f":"Disziplinen!L59","v":58}]
[{"$f":"Disziplinen!B60","v":"300 m Hürden 0,686 m"},{"$f":"Disziplinen!L60","v":59}]
[{"$f":"Disziplinen!B61","v":"300 m Hürden 0,762 m"},{"$f":"Disziplinen!L61","v":60}]
[{"$f":"Disziplinen!B62","v":"300 m Hürden 0,838 m"},{"$f":"Disziplinen!L62","v":61}]
[{"$f":"Disziplinen!B63","v":"400 m Hürden"},{"$f":"Disziplinen!L63","v":62}]
[{"$f":"Disziplinen!B64","v":"400 m Hürden 0,762 m"},{"$f":"Disziplinen!L64","v":63}]
[{"$f":"Disziplinen!B65","v":"400 m Hürden 0,838 m"},{"$f":"Disziplinen!L65","v":64}]
[{"$f":"Disziplinen!B66","v":"400 m Hürden 0,914 m"},{"$f":"Disziplinen!L66","v":65}]
[{"$f":"Disziplinen!B67","v":"1.500 m Hindernis"},{"$f":"Disziplinen!L67","v":66}]
[{"$f":"Disziplinen!B68","v":"1.500 m Hindernis 0,762 m"},{"$f":"Disziplinen!L68","v":67}]
[{"$f":"Disziplinen!B69","v":"2.000 m Hindernis"},{"$f":"Disziplinen!L69","v":68}]
[{"$f":"Disziplinen!B70","v":"2.000 m Hindernis 0,762 m"},{"$f":"Disziplinen!L70","v":69}]
[{"$f":"Disziplinen!B71","v":"2.000 m Hindernis 0,838 m"},{"$f":"Disziplinen!L71","v":70}]
[{"$f":"Disziplinen!B72","v":"2.000 m Hindernis 0,914 m"},{"$f":"Disziplinen!L72","v":71}]
[{"$f":"Disziplinen!B73","v":"3.000 m Hindernis"},{"$f":"Disziplinen!L73","v":72}]
[{"$f":"Disziplinen!B74","v":"3.000 m Hindernis 0,762 m"},{"$f":"Disziplinen!L74","v":73}]
[{"$f":"Disziplinen!B75","v":"3.000 m Hindernis 0,914 m"},{"$f":"Disziplinen!L75","v":74}]
[{"$f":"Disziplinen!B76","v":"4x50 m Staffel"},{"$f":"Disziplinen!L76","v":75}]
[{"$f":"Disziplinen!B77","v":"4x75 m Staffel"},{"$f":"Disziplinen!L77","v":76}]
[{"$f":"Disziplinen!B78","v":"4x100 m Staffel"},{"$f":"Disziplinen!L78","v":77}]
[{"$f":"Disziplinen!B79","v":"4x200 m Staffel"},{"$f":"Disziplinen!L79","v":78}]
[{"$f":"Disziplinen!B80","v":"4x400 m Staffel"},{"$f":"Disziplinen!L80","v":79}]
[{"$f":"Disziplinen!B81","v":"3x800 m Staffel"},{"$f":"Disziplinen!L81","v":80}]
[{"$f":"Disziplinen!B82","v":"3x1.000 m Staffel"},{"$f":"Disziplinen!L82","v":81}]
[{"$f":"Disziplinen!B83","v":"Schwedenstaffel"},{"$f":"Disziplinen!L83","v":82}]
[{"$f":"Disziplinen!B84","v":"4x110/100 m Hürden Staffel"},{"$f":"Disziplinen!L84","v":83}]
[{"$f":"Disziplinen!B85","v":"1.000 m Bahngehen"},{"$f":"Disziplinen!L85","v":84}]
[{"$f":"Disziplinen!B86","v":"2.000 m Bahngehen"},{"$f":"Disziplinen!L86","v":85}]
[{"$f":"Disziplinen!B87","v":"3.000 m Bahngehen"},{"$f":"Disziplinen!L87","v":86}]
[{"$f":"Disziplinen!B88","v":"5.000 m Bahngehen"},{"$f":"Disziplinen!L88","v":87}]
[{"$f":"Disziplinen!B89","v":"10.000 m Bahngehen"},{"$f":"Disziplinen!L89","v":88}]
[{"$f":"Disziplinen!B90","v":"20.000 m Bahngehen"},{"$f":"Disziplinen!L90","v":89}]
[{"$f":"Disziplinen!B91","v":"2 km Straßengehen"},{"$f":"Disziplinen!L91","v":90}]
[{"$f":"Disziplinen!B92","v":"2 km Straßengehen Mannschaft"},{"$f":"Disziplinen!L92","v":91}]
[{"$f":"Disziplinen!B93","v":"3 km Straßengehen"},{"$f":"Disziplinen!L93","v":92}]
[{"$f":"Disziplinen!B94","v":"3 km Straßengehen Mannschaft"},{"$f":"Disziplinen!L94","v":93}]
[{"$f":"Disziplinen!B95","v":"5 km Straßengehen"},{"$f":"Disziplinen!L95","v":94}]
[{"$f":"Disziplinen!B96","v":"5 km Straßengehen Mannschaft"},{"$f":"Disziplinen!L96","v":95}]
[{"$f":"Disziplinen!B97","v":"10 km Straßengehen"},{"$f":"Disziplinen!L97","v":96}]
[{"$f":"Disziplinen!B98","v":"10 km Straßengehen Mannschaft"},{"$f":"Disziplinen!L98","v":97}]
[{"$f":"Disziplinen!B99","v":"20 km Straßengehen"},{"$f":"Disziplinen!L99","v":98}]
[{"$f":"Disziplinen!B100","v":"20 km Straßengehen Mannschaft"},{"$f":"Disziplinen!L100","v":99}]
[{"$f":"Disziplinen!B101","v":"30 km Straßengehen"},{"$f":"Disziplinen!L101","v":100}]
[{"$f":"Disziplinen!B102","v":"30 km Straßengehen Mannschaft"},{"$f":"Disziplinen!L102","v":101}]
[{"$f":"Disziplinen!B103","v":"35 km Straßengehen"},{"$f":"Disziplinen!L103","v":102}]
[{"$f":"Disziplinen!B104","v":"35 km Straßengehen Mannschaft"},{"$f":"Disziplinen!L104","v":103}]
[{"$f":"Disziplinen!B105","v":"50 km Straßengehen"},{"$f":"Disziplinen!L105","v":104}]
[{"$f":"Disziplinen!B106","v":"50 km Straßengehen Mannschaft"},{"$f":"Disziplinen!L106","v":105}]
[{"$f":"Disziplinen!B107","v":"Hochsprung"},{"$f":"Disziplinen!L107","v":106}]
[{"$f":"Disziplinen!B108","v":"Stabhochsprung"},{"$f":"Disziplinen!L108","v":107}]
[{"$f":"Disziplinen!B109","v":"Weitsprung"},{"$f":"Disziplinen!L109","v":108}]
[{"$f":"Disziplinen!B110","v":"Weitsprungzone"},{"$f":"Disziplinen!L110","v":109}]
[{"$f":"Disziplinen!B111","v":"Dreisprung"},{"$f":"Disziplinen!L111","v":110}]
[{"$f":"Disziplinen!B112","v":"Kugelstoß"},{"$f":"Disziplinen!L112","v":111}]
[{"$f":"Disziplinen!B113","v":"Kugelstoß 2 kg"},{"$f":"Disziplinen!L113","v":112}]
[{"$f":"Disziplinen!B114","v":"Kugelstoß 3 kg"},{"$f":"Disziplinen!L114","v":113}]
[{"$f":"Disziplinen!B115","v":"Kugelstoß 4 kg"},{"$f":"Disziplinen!L115","v":114}]
[{"$f":"Disziplinen!B116","v":"Kugelstoß 5 kg"},{"$f":"Disziplinen!L116","v":115}]
[{"$f":"Disziplinen!B117","v":"Kugelstoß 6 kg"},{"$f":"Disziplinen!L117","v":116}]
[{"$f":"Disziplinen!B118","v":"Kugelstoß 7,26 kg"},{"$f":"Disziplinen!L118","v":117}]
[{"$f":"Disziplinen!B119","v":"Gewichtwurf"},{"$f":"Disziplinen!L119","v":118}]
[{"$f":"Disziplinen!B120","v":"Gewichtwurf 4 kg"},{"$f":"Disziplinen!L120","v":119}]
[{"$f":"Disziplinen!B121","v":"Gewichtwurf 5,45 kg"},{"$f":"Disziplinen!L121","v":120}]
[{"$f":"Disziplinen!B122","v":"Gewichtwurf 7,26 kg"},{"$f":"Disziplinen!L122","v":121}]
[{"$f":"Disziplinen!B123","v":"Gewichtwurf 9,08 kg"},{"$f":"Disziplinen!L123","v":122}]
[{"$f":"Disziplinen!B124","v":"Gewichtwurf 11,34 kg"},{"$f":"Disziplinen!L124","v":123}]
[{"$f":"Disziplinen!B125","v":"Gewichtwurf 15,88 kg"},{"$f":"Disziplinen!L125","v":124}]
[{"$f":"Disziplinen!B126","v":"Diskuswurf"},{"$f":"Disziplinen!L126","v":125}]
[{"$f":"Disziplinen!B127","v":"Diskuswurf 0,75 kg"},{"$f":"Disziplinen!L127","v":126}]
[{"$f":"Disziplinen!B128","v":"Diskuswurf 1 kg"},{"$f":"Disziplinen!L128","v":127}]
[{"$f":"Disziplinen!B129","v":"Diskuswurf 1,5 kg"},{"$f":"Disziplinen!L129","v":128}]
[{"$f":"Disziplinen!B130","v":"Diskuswurf 1,75 kg"},{"$f":"Disziplinen!L130","v":129}]
[{"$f":"Disziplinen!B131","v":"Diskuswurf 2 kg"},{"$f":"Disziplinen!L131","v":130}]
[{"$f":"Disziplinen!B132","v":"Hammerwurf"},{"$f":"Disziplinen!L132","v":131}]
[{"$f":"Disziplinen!B133","v":"Hammerwurf 2 kg"},{"$f":"Disziplinen!L133","v":132}]
[{"$f":"Disziplinen!B134","v":"Hammerwurf 3 kg"},{"$f":"Disziplinen!L134","v":133}]
[{"$f":"Disziplinen!B135","v":"Hammerwurf 4 kg"},{"$f":"Disziplinen!L135","v":134}]
[{"$f":"Disziplinen!B136","v":"Hammerwurf 5 kg"},{"$f":"Disziplinen!L136","v":135}]
[{"$f":"Disziplinen!B137","v":"Hammerwurf 6 kg"},{"$f":"Disziplinen!L137","v":136}]
[{"$f":"Disziplinen!B138","v":"Hammerwurf 7,26 kg"},{"$f":"Disziplinen!L138","v":137}]
[{"$f":"Disziplinen!B139","v":"Speerwurf"},{"$f":"Disziplinen!L139","v":138}]
[{"$f":"Disziplinen!B140","v":"Speerwurf 400 g"},{"$f":"Disziplinen!L140","v":139}]
[{"$f":"Disziplinen!B141","v":"Speerwurf 500 g"},{"$f":"Disziplinen!L141","v":140}]
[{"$f":"Disziplinen!B142","v":"Speerwurf 600 g"},{"$f":"Disziplinen!L142","v":141}]
[{"$f":"Disziplinen!B143","v":"Speerwurf 700 g"},{"$f":"Disziplinen!L143","v":142}]
[{"$f":"Disziplinen!B144","v":"Speerwurf 800 g"},{"$f":"Disziplinen!L144","v":143}]
[{"$f":"Disziplinen!B145","v":"Schlagball 80 g"},{"$f":"Disziplinen!L145","v":144}]
[{"$f":"Disziplinen!B146","v":"Ballwurf 200 g"},{"$f":"Disziplinen!L146","v":145}]
[{"$f":"Disziplinen!B147","v":"3-Kampf"},{"$f":"Disziplinen!L147","v":146}]
[{"$f":"Disziplinen!B148","v":"3-Kampf Mannschaft"},{"$f":"Disziplinen!L148","v":147}]
[{"$f":"Disziplinen!B149","v":"4-Kampf"},{"$f":"Disziplinen!L149","v":148}]
[{"$f":"Disziplinen!B150","v":"4-Kampf Mannschaft"},{"$f":"Disziplinen!L150","v":149}]
[{"$f":"Disziplinen!B151","v":"5-Kampf"},{"$f":"Disziplinen!L151","v":150}]
[{"$f":"Disziplinen!B152","v":"5-Kampf Mannschaft"},{"$f":"Disziplinen!L152","v":151}]
[{"$f":"Disziplinen!B153","v":"7-Kampf"},{"$f":"Disziplinen!L153","v":152}]
[{"$f":"Disziplinen!B154","v":"7-Kampf Mannschaft"},{"$f":"Disziplinen!L154","v":153}]
[{"$f":"Disziplinen!B155","v":"9-Kampf"},{"$f":"Disziplinen!L155","v":154}]
[{"$f":"Disziplinen!B156","v":"9-Kampf Mannschaft"},{"$f":"Disziplinen!L156","v":155}]
[{"$f":"Disziplinen!B157","v":"10-Kampf"},{"$f":"Disziplinen!L157","v":156}]
[{"$f":"Disziplinen!B158","v":"10-Kampf Mannschaft"},{"$f":"Disziplinen!L158","v":157}]
[{"$f":"Disziplinen!B159","v":"Block Sprint/Sprung"},{"$f":"Disziplinen!L159","v":158}]
[{"$f":"Disziplinen!B160","v":"Block Lauf"},{"$f":"Disziplinen!L160","v":159}]
[{"$f":"Disziplinen!B161","v":"Block Wurf"},{"$f":"Disziplinen!L161","v":160}]
[{"$f":"Disziplinen!B162","v":"Block Mannschaft"},{"$f":"Disziplinen!L162","v":161}]
[{"$f":"Disziplinen!B163","v":"Wurf 5-Kampf"},{"$f":"Disziplinen!L163","v":162}]
[{"$f":"Disziplinen!B164","v":"Wurf 5-Kampf Mannschaft"},{"$f":"Disziplinen!L164","v":163}]

{"sheet":"Verbände","index":4,"n_rows":23,"n_cols":4,"rows_kept":23,"cut":false,"hidden":true,"merged":[]}
["Code","ID","Landesverband","Icon"]
[0,"DLV","Deutscher Leichtathletikverband"]
[1,"BA","Badischer Leichtathletik-Verband"]
[2,"BY","Bayerischer Leichtathletik-Verband"]
[3,"BE","Berliner Leichtathletik-Verband"]
[4,"BB","Leichtathletik-Verband Brandenburg"]
[5,"BR","Bremer Leichtathletik-Verband"]
[6,"HH","Hamburger Leichtathletik-Verband"]
[7,"HE","Hessischer Leichtathletik-Verband"]
[8,"MV","Leichtathletik-Verband Mecklenburg-Vorpommern"]
[9,"NI","Niedersächsischer Leichtathletik-Verband"]
[10,"NO","Leichtathletik-Verband Nordrhein"]
[11,"PF","Leichtathletikverband Pfalz"]
[12,"RH","Leichtathletik-Verband Rheinhessen"]
[13,"RL","Leichtathletik-Verband Rheinland"]
[14,"SL","Saarländischer Leichtathletik Bund"]
[15,"SN","Leichtathletik-Verband Sachsen"]
[16,"ST","Leichtathletikverband Sachsen-Anhalt"]
[17,"SH","Schleswig-Holsteinischer Leichtathletik-Verband"]
[18,"TH","Thüringer Leichtathletik-Verband"]
[19,"WE","Fußball- und Leichtathletik-Verband Westfalen"]
[20,"WÜ","Württembergischer Leichtathletik-Verband"]
[21,"VER","mein Verein"]

{"sheet":"Altersklassen","index":5,"n_rows":56,"n_cols":8,"rows_kept":56,"cut":false,"hidden":true,"merged":[]}
["Name","Name ENG","Code","Web Gruppe","Offiziell","DLV-net ID","Seltec","Sortierung"]
["Kinder M10","Children M10","M10","Kinderleichtathletik (4)","Ja",68,{"$f":"A2","v":"Kinder M10"},10]
["Kinder M11","Children M11","M11","Kinderleichtathletik (4)","Ja",67,{"$f":"A3","v":"Kinder M11"},11]
["Jugend M12","Youth M12","M12","Nachwuchs (2)","Ja",25,"Jugend M12",13]
["Jugend M13","Youth M13","M13","Nachwuchs (2)","Ja",24,"Jugend M13",14]
["Jugend M14","Youth M14","M14","Nachwuchs (2)","Ja",23,"Jugend M14",16]
["Jugend M15","Youth M15","M15","Nachwuchs (2)","Ja",22,"Jugend M15",17]
["männliche Kinder U12","male children U12","MKU12","Kinderleichtathletik (4)","Ja",19,"männliche Kinder U12",12]
["männliche Jugend U14","male youth U14","MJU14","Nachwuchs (2)","Ja",18,"männliche Jugend U14",15]
["männliche Jugend U16","male youth U16","MJU16","Nachwuchs (2)","Ja",17,"männliche Jugend U16",18]
["männliche Jugend U18","male youth U18","MJU18","Nachwuchs (2)","Ja",16,"männliche Jugend U18",23]
["männliche Jugend U20","male youth U20","MJU20","Nachwuchs (2)","Ja",15,"männliche Jugend U20",24]
["Junioren U23","Juniors U23","MU23","Männer/Frauen (1)","Ja",2,"Junioren U23",25]
["Männer","Men","M","Männer/Frauen (1)","Ja",1,"Männer",26]
["Senioren M30","Master M30","M30","Senioren (3)","Ja",3,"Senioren M30",42]
["Senioren M35","Master M35","M35","Senioren (3)","Ja",4,"Senioren M35",43]
["Senioren M40","Master M40","M40","Senioren (3)","Ja",5,"Senioren M40",44]
["Senioren M45","Master M45","M45","Senioren (3)","Ja",6,"Senioren M45",45]
["Senioren M50","Master M50","M50","Senioren (3)","Ja",7,"Senioren M50",46]
["Senioren M55","Master M55","M55","Senioren (3)","Ja",8,"Senioren M55",47]
["Senioren M60","Master M60","M60","Senioren (3)","Ja",9,"Senioren M60",48]
["Senioren M65","Master M65","M65","Senioren (3)","Ja",10,"Senioren M65",49]
["Senioren M70","Master M70","M70","Senioren (3)","Ja",11,"Senioren M70",50]
["Senioren M75","Master M75","M75","Senioren (3)","Ja",12,"Senioren M75",51]
["Senioren M80","Master M80","M80","Senioren (3)","Ja",13,"Senioren M80",52]
["Senioren M85","Master M85","M85","Senioren (3)","Ja",14,"Senioren M85",53]
["Senioren M90","Master M90","M90","Senioren (3)","Ja",80,"Senioren M90",54]
["Senioren M95","Master M95","M95","Senioren (3)","Ja",91,"Senioren M95",55]
["Kinder W10","Children W10","W10","Kinderleichtathletik (4)","Ja",70,"Kinder W10",1]
["Kinder W11","Children W11","W11","Kinderleichtathletik (4)","Ja",69,"Kinder W11",2]
["Jugend W12","Youth W12","W12","Nachwuchs (2)","Ja",49,"Jugend W12",4]
["Jugend W13","Youth W13","W13","Nachwuchs (2)","Ja",48,"Jugend W13",5]
["Jugend W14","Youth W14","W14","Nachwuchs (2)","Ja",47,"Jugend W14",7]
["Jugend W15","Youth W15","W15","Nachwuchs (2)","Ja",46,"Jugend W15",8]
["weibliche Kinder U12","female children U12","WKU12","Kinderleichtathletik (4)","Ja",43,"weibliche Kinder U12",3]
["weibliche Jugend U14","female youth U14","WJU14","Nachwuchs (2)","Ja",42,"weibliche Jugend U14",6]
["weibliche Jugend U16","female youth U16","WJU16","Nachwuchs (2)","Ja",41,"weibliche Jugend U16",9]
["weibliche Jugend U18","female youth U18","WJU18","Nachwuchs (2)","Ja",40,"weibliche Jugend U18",19]
["weibliche Jugend U20","female youth U20","WJU20","Nachwuchs (2)","Ja",39,"weibliche Jugend U20",20]
["Juniorinnen U23","Juniors U23","WU23","Männer/Frauen (1)","Ja",27,"Juniorinnen U23",21]
["Frauen","Women","W","Männer/Frauen (1)","Ja",26,"Frauen",22]
["Seniorinnen W30","Master W30","W30","Senioren (3)","Ja",28,"Seniorinnen W30",28]
["Seniorinnen W35","Master W35","W35","Senioren (3)","Ja",29,"Seniorinnen W35",29]
["Seniorinnen W40","Master W40","W40","Senioren (3)","Ja",30,"Seniorinnen W40",30]
["Seniorinnen W45","Master W45","W45","Senioren (3)","Ja",31,"Seniorinnen W45",31]
["Seniorinnen W50","Master W50","W50","Senioren (3)","Ja",32,"Seniorinnen W50",32]
["Seniorinnen W55","Master W55","W55","Senioren (3)","Ja",33,"Seniorinnen W55",33]
["Seniorinnen W60","Master W60","W60","Senioren (3)","Ja",34,"Seniorinnen W60",34]
["Seniorinnen W65","Master W65","W65","Senioren (3)","Ja",35,"Seniorinnen W65",35]
["Seniorinnen W70","Master W70","W70","Senioren (3)","Ja",36,"Seniorinnen W70",36]
["Seniorinnen W75","Master W75","W75","Senioren (3)","Ja",37,"Seniorinnen W75",37]
["Seniorinnen W80","Master W80","W80","Senioren (3)","Ja",38,"Seniorinnen W80",38]
["Seniorinnen W85","Master W85","W85","Senioren (3)","Ja",81,"Seniorinnen W85",39]
["Seniorinnen W90","Master W90","W90","Senioren (3)","Ja",82,"Seniorinnen W90",40]
["Seniorinnen W95","Master W95","W95","Senioren (3)","Ja",92,"Seniorinnen W95",41]
["Männer/Frauen gemischt","Mixed men / women","X",null,"Ja",93,"Männer/Frauen gemischt",27]

{"sheet":"Disziplinen","index":6,"n_rows":164,"n_cols":12,"rows_kept":164,"cut":false,"hidden":true,"merged":[]}
["Code","Name","Kurzname","Name_EN","Offiziell","Webgruppe","Disziplinblock","Disziplingruppe","ID_legacy","Einheit","Seltec","Sortierung"]
["L50","50 m","50m","50 m Sprint","Ja","Sprint","Kurzsprint","Sprint/Hürde","10","sek",{"$f":"B2","v":"50 m"},1]
["L60","60 m","60m","60 m Sprint","Ja","Sprint","Kurzsprint","Sprint/Hürde","11","sek",{"$f":"B3","v":"60 m"},{"$f":"L2+1","v":2}]
["L75","75 m","75m","75 m Sprint","Ja","Sprint","Kurzsprint","Sprint/Hürde","12","sek","75 m",{"$f":"L3+1","v":3}]
["L100","100 m","100m","100 m Sprint","Ja","Sprint","Kurzsprint","Sprint/Hürde","13","sek",{"$f":"B5","v":"100 m"},4]
["L200","200 m","200m","200 m Sprint","Ja","Sprint","Kurzsprint","Sprint/Hürde","14","sek","200 m",5]
["L300","300 m","300m","300 m Sprint","Ja","Sprint","Langsprint","Sprint/Hürde","15","sek","300 m",6]
["L400","400 m","400m","400 m Sprint","Ja","Langsprint","Langsprint","Sprint/Hürde","16","sek","400 m",7]
["L600","600 m","600m","600 m Run","Ja","Langsprint","Mittelstrecke","Lauf/Gehen","62","min","600 m",8]
["L800","800 m","800m","800 m Run","Ja","Mittelstrecke","Mittelstrecke","Lauf/Gehen","17","min","800 m",9]
["L1K0","1.000 m","1.000m","1,000 m Run","Ja","Mittelstrecke","Mittelstrecke","Lauf/Gehen","18","min","1.000 m",10]
["L1K5","1.500 m","1.500m","1,500 m Run","Ja","Mittelstrecke","Mittelstrecke","Lauf/Gehen","19","min","1.500 m",11]
["LMEI","1 Meile","1 Meile","1 Mile Run","Ja","Mittelstrecke","Mittelstrecke","Lauf/Gehen","20","min","1 Meile",12]
["L2K0","2.000 m","2.000m","2,000 m Run","Ja","Mittelstrecke","Mittelstrecke","Lauf/Gehen","21","min","2.000 m",13]
["L3K0","3.000 m","3.000m","3,000 m Run","Ja","Langstrecke","Mittelstrecke","Lauf/Gehen","22","min","3.000 m",14]
["L5K0","5.000 m","5.000m","5,000 m Run","Ja","Langstrecke","Langstrecke","Lauf/Gehen","23","min","5.000 m",15]
["L10K","10.000 m","10.000m","10,000 m Run","Ja","Langstrecke","Langstrecke","Lauf/Gehen","24","min","10.000 m",16]
["S5K","5 km Straße","5km Str.","5 km Road Race","Ja","Strassenläufe Sonstige","Langstrecke","Lauf/Gehen","68","min","5 km Straße",17]
["S5KM","5 km Straße Mannschaft","5km Str.M.","5 km Road Race Team","Ja","Strassenläufe Sonstige","Langstrecke Mannschaft","Mannschaft","69","min","5 km Straße Mannschaft",18]
["S7K5","7,5 km Straße","7,5km Str.","7.5 km Road Race","Ja","Strassenläufe Sonstige","Langstrecke","Lauf/Gehen","70","min","7,5 km Straße",19]
["S7K5M","7,5 km Straße Mannschaft","7,5kmStr.M","7.5 km Road Race Team","Ja","Strassenläufe Sonstige","Langstrecke Mannschaft","Mannschaft","71","min","7,5 km Straße Mannschaft",20]
["S10K","10 km Straße","10km Str.","10 km Road Race","Ja","Strassenläufe Sonstige","Langstrecke","Lauf/Gehen","72","min","10 km Straße",21]
["S10KM","10 km Straße Mannschaft","10km Str.M","10 km Road Race Team","Ja","Strassenläufe Sonstige","Langstrecke Mannschaft","Mannschaft","73","min","10 km Straße Mannschaft",22]
["S15K","15 km Straße","15km Str.","15 km Road Race","Ja","Strassenläufe Sonstige","Langstrecke","Lauf/Gehen","74","min","15 km Straße",23]
["S15KM","15 km Straße Mannschaft","15km Str.M","15 km Road Race Team","Ja","Strassenläufe Sonstige","Langstrecke Mannschaft","Mannschaft","75","min","15 km Straße Mannschaft",24]
["S20K","20 km Straße","20km Str.","20 km Road Race","Ja","Strassenläufe Sonstige","Langstrecke","Lauf/Gehen","76","std","20 km Straße",25]
["ASTD","Stundenlauf","Std.-lauf","1 hour run","Nein","Langstrecke ","Langstrecke ","Lauf/Gehen","","pkt","Stundenlauf",26]
["SHAL","Halbmarathon","HM","Half Marathon","Ja","Halbmarathon","Marathon","Lauf/Gehen","78","std","Halbmarathon",27]
["SHALM","Halbmarathon Mannschaft","HM Man.","Half Marathon Team","Ja","Halbmarathon","Langstrecke Mannschaft",null,"79","std","Halbmarathon Mannschaft",28]
["S25K","25 km Straße","25km Str.","25 km Road Race","Ja","Strassenläufe Sonstige","Langstrecke",null,"80","std","25 km Straße",29]
["S25KM","25 km Straße Mannschaft","25km Str.M","25 km Road Race Team","Ja","Strassenläufe Sonstige","Langstrecke Mannschaft",null,"81","std","25 km Straße Mannschaft",30]
["SMAR","Marathon","Marathon","Marathon","Ja","Marathon","Marathon",null,"82","std","Marathon",31]
["SMARM","Marathon Mannschaft","Marathon M","Marathon Team","Ja","Marathon","Langstrecke Mannschaft",null,"83","std","Marathon Mannschaft",32]
["S50K","50 km Straße","50km Str.","50 km Road Race","Ja","Strassenläufe Sonstige","Ultralauf",null,"463","std","50 km Straße",33]
["S100K","100 km Straße","100km Str.","100 km Road Race","Ja","Strassenläufe Sonstige","Ultralauf",null,"84","std","100 km Straße",34]
["S100KM","100 km Straße Mannschaft","100kmStr.M","100 km Road Race Team","Ja","Strassenläufe Sonstige","Langstrecke Mannschaft",null,"85","std","100 km Straße Mannschaft",35]
["A24STD","24-Stundenlauf","24-Std.-lauf","24 hour run","Ja","Langstrecke ","Langstrecke ","Lauf/Gehen","","pkt",{"$f":"B37","v":"24-Stundenlauf"},36]
["H60","60 m Hürden","60m Hürd.","60 m Hurdles","Ja","Hürden","Kurzhürde","Sprint/Hürde","","sek","60 m Hürden",37]
["H60_0686","60 m Hürden 0,686 m","60m Hürd.","60 m Hurdles 0.686 m","Ja","Hürden","Kurzhürde","Sprint/Hürde","232","sek","60 m Hürden 0,686 m",38]
["H60_0762","60 m Hürden 0,762 m","60m Hürd.","60 m Hurdles 0.762 m","Ja","Hürden","Kurzhürde","Sprint/Hürde","102,231,420","sek","60 m Hürden 0,762 m",39]
["H60_0838","60 m Hürden 0,838 m","60m Hürd.","60 m Hurdles 0.838 m","Ja","Hürden","Kurzhürde","Sprint/Hürde","103,421,422,423","sek","60 m Hürden 0,838 m",40]
["H60_0914","60 m Hürden 0,914 m","60m Hürd.","60 m Hurdles 0.914 m","Ja","Hürden","Kurzhürde","Sprint/Hürde","104,424","sek","60 m Hürden 0,914 m",41]
["H60_0991","60 m Hürden 0,991 m","60m Hürd.","60 m Hurdles 0.991 m","Ja","Hürden","Kurzhürde","Sprint/Hürde","105","sek","60 m Hürden 0,991 m",42]
["H60_1067","60 m Hürden 1,067 m","60m Hürd.","60 m Hurdles 1.067 m","Ja","Hürden","Kurzhürde","Sprint/Hürde","26","sek","60 m Hürden 1,067 m",43]
["H80","80 m Hürden","80m Hürd.","80 m Hurdles","Ja","Hürden","Kurzhürde","Sprint/Hürde","","sek","80 m Hürden",44]
["H80_0686","80 m Hürden 0,686 m","80m Hürd.","80 m Hurdles 0.686 m","Ja","Hürden","Kurzhürde","Sprint/Hürde","233","sek","80 m Hürden 0,686 m",45]
["H80_0762","80 m Hürden 0,762 m","80m Hürd.","80 m Hurdles 0.762 m","Ja","Hürden","Kurzhürde","Sprint/Hürde","148,230","sek","80 m Hürden 0,762 m",46]
["H80_0838","80 m Hürden 0,838 m","80m Hürd.","80 m Hurdles 0.838 m","Ja","Hürden","Kurzhürde","Sprint/Hürde","27","sek","80 m Hürden 0,838 m",47]
["H100","100 m Hürden","100m Hürd.","100 m Hurdles","Ja","Hürden","Kurzhürde","Sprint/Hürde","","sek","100 m Hürden",48]
["H100_0762","100 m Hürden 0,762 m","100m Hürd.","100 m Hurdles 0.762 m","Ja","Hürden","Kurzhürde","Sprint/Hürde","106","sek","100 m Hürden 0,762 m",49]
["H100_0838","100 m Hürden 0,838 m","100m Hürd.","100 m Hurdles 0.838 m","Ja","Hürden","Kurzhürde","Sprint/Hürde","28,419","sek","100 m Hürden 0,838 m",50]
["H100_0914","100 m Hürden 0,914 m","100m Hürd.","100 m Hurdles 0.914 m","Ja","Hürden","Kurzhürde","Sprint/Hürde","381","sek","100 m Hürden 0,914 m",51]
["H110","110 m Hürden","110m Hürd.","110 m Hurdles","Ja","Hürden","Kurzhürde","Sprint/Hürde","","sek","110 m Hürden",52]
["H110_0762","110 m Hürden 0,762 m","110m Hürd.","110 m Hurdles 0.762 m","Ja","Hürden","Kurzhürde","Sprint/Hürde","","sek","110 m Hürden 0,762 m",53]
["H110_0914","110 m Hürden 0,914 m","110m Hürd.","110 m Hurdles 0.914 m","Ja","Hürden","Kurzhürde","Sprint/Hürde","107","sek","110 m Hürden 0,914 m",54]
["H110_0991","110 m Hürden 0,991 m","110m Hürd.","110 m Hurdles 0.991 m","Ja","Hürden","Kurzhürde","Sprint/Hürde","108","sek","110 m Hürden 0,991 m",55]
["H110_1067","110 m Hürden 1,067 m","110m Hürd.","110 m Hurdles 1.067 m","Ja","Hürden","Kurzhürde","Sprint/Hürde","29","sek","110 m Hürden 1,067 m",56]
["H200","200 m Hürden","200m Hürd.","200 m Hurdles","Ja","Langhürden","Langhürde","Sprint/Hürde","450","sek","200 m Hürden",57]
["H300","300 m Hürden","300m Hürd.","300 m Hurdles","Ja","Hürden","Langhürde","Sprint/Hürde","","sek","300 m Hürden",58]
["H300_0686","300 m Hürden 0,686 m","300m Hürd.","300 m Hurdles 0.686 m","Ja","Hürden","Langhürde","Sprint/Hürde","382","sek","300 m Hürden 0,686 m",59]
["H300_0762","300 m Hürden 0,762 m","300m Hürd.","300 m Hurdles 0.762 m","Ja","Hürden","Langhürde","Sprint/Hürde","109","sek","300 m Hürden 0,762 m",60]
["H300_0838","300 m Hürden 0,838 m","300m Hürd.","300 m Hurdles 0.838 m","Ja","Hürden","Langhürde","Sprint/Hürde","30","sek","300 m Hürden 0,838 m",61]
["H400","400 m Hürden","400m Hürd.","400 m Hurdles","Ja","Hürden","Langhürde","Sprint/Hürde","","sek","400 m Hürden",62]
["H400_0762","400 m Hürden 0,762 m","400m Hürd.","400 m Hurdles 0.762 m","Nein","Hürden","Langhürde","Sprint/Hürde","110","sek","400 m Hürden 0,762 m",63]
["H400_0838","400 m Hürden 0,838 m","400m Hürd.","400 m Hurdles 0.838 m","Ja","Hürden","Langhürde","Sprint/Hürde","111","sek","400 m Hürden 0,838 m",64]
["H400_0914","400 m Hürden 0,914 m","400m Hürd.","400 m Hurdles 0.914 m","Ja","Hürden","Langhürde","Sprint/Hürde","31","sek","400 m Hürden 0,914 m",65]
["H1K5","1.500 m Hindernis","1.500m Hin","1,500 m Steeplechase","Ja","Hindernis","Hindernis","Lauf/Gehen","","min","1.500 m Hindernis",66]
["H1K5_0762","1.500 m Hindernis 0,762 m","1.500m Hin","1,500 m Steeplechase 0.762 m","Ja","Hindernis","Hindernis","Lauf/Gehen","32","min","1.500 m Hindernis 0,762 m",67]
["H2K0","2.000 m Hindernis","2.000m Hin","2,000 m Steeplechase","Ja","Hindernis","Hindernis","Lauf/Gehen","","min","2.000 m Hindernis",68]
["H2K0_0762","2.000 m Hindernis 0,762 m","2.000m Hin","2,000 m Steeplechase 0.762 m","Ja","Hindernis","Hindernis","Lauf/Gehen","33","min",{"$f":"B70","v":"2.000 m Hindernis 0,762 m"},{"$f":"L69+1","v":69}]
["H2K0_0838","2.000 m Hindernis 0,838 m","2.000m Hin","2,000 m Steeplechase 0.838 m","Ja","Hindernis","Hindernis","Lauf/Gehen","465","min","2.000 m Hindernis 0,838 m",70]
["H2K0_0914","2.000 m Hindernis 0,914 m","2.000m Hin","2,000 m Steeplechase 0.914 m","Ja","Hindernis","Hindernis","Lauf/Gehen","112","min","2.000 m Hindernis 0,914 m",71]
["H3K0","3.000 m Hindernis","3.000m Hin","3,000 m Steeplechase","Ja","Hindernis","Hindernis","Lauf/Gehen","","min","3.000 m Hindernis",72]
["H3K0_0762","3.000 m Hindernis 0,762 m","3.000m Hin","3,000 m Steeplechase 0.762 m","Ja","Hindernis","Hindernis","Lauf/Gehen","113","min","3.000 m Hindernis 0,762 m",73]
["H3K0_0914","3.000 m Hindernis 0,914 m","3.000m Hin","3,000 m Steeplechase 0.914 m","Ja","Hindernis","Hindernis","Lauf/Gehen","34","min","3.000 m Hindernis 0,914 m",74]
["X4X5","4x50 m Staffel","4x50m","4x50 m relay","Ja","Staffeln","Sprintstaffel","Staffel","35","sek","4x50 m Staffel",75]
["X4X7","4x75 m Staffel","4x75m","4x75 m relay","Ja","Staffeln","Sprintstaffel","Staffel","36","sek","4x75 m Staffel",76]
["X4X1","4x100 m Staffel","4x100m","4x100 m relay","Ja","Staffeln","Sprintstaffel","Staffel","37","sek","4x100 m Staffel",77]
["X4X2","4x200 m Staffel","4x200m","4x200 m relay","Ja","Staffeln","Sprintstaffel","Staffel","38","min","4x200 m Staffel",78]
["X4X4","4x400 m Staffel","4x400m","4x400 m relay","Ja","Staffeln","Sprintstaffel","Staffel","39","min","4x400 m Staffel",79]
["X3X8","3x800 m Staffel","3x800m","3x800 m relay","Ja","Staffeln","Laufstaffel","Staffel","40","min","3x800 m Staffel",80]
["X3X1","3x1.000 m Staffel","3x1.000m","3x1.000 m relay","Ja","Staffeln","Laufstaffel","Staffel","42","min","3x1.000 m Staffel",81]
["XSWE","Schwedenstaffel","Schwedens.","Swedish relay (4-3-2-1)","Ja","Staffeln","Sprintstaffel","Staffel","100","min","Schwedenstaffel",82]
["X4XH","4x110/100 m Hürden Staffel","4xHürden","4x110/100 Hurdles relay","Ja","Staffeln","Sprintstaffel","Staffel","466","min","4x110/100 m Hürden Staffel",83]
["GB1","1.000 m Bahngehen","1.000m BG","1,000 m Race Walking","Ja","Gehen","Bahngehen","Lauf/Gehen","64","min","1.000 m Bahngehen",84]
["GB2","2.000 m Bahngehen","2.000m BG","2,000 m Race Walking","Ja","Gehen","Bahngehen","Lauf/Gehen","46","min","2.000 m Bahngehen",85]
["GB3","3.000 m Bahngehen","3.000m BG","3,000 m Race Walking","Ja","Gehen","Bahngehen","Lauf/Gehen","47","min","3.000 m Bahngehen",86]
["GB5","5.000 m Bahngehen","5.000m BG","5,000 m Race Walking","Ja","Gehen","Bahngehen","Lauf/Gehen","48","min","5.000 m Bahngehen",87]
["GB10","10.000 m Bahngehen","10.000m BG","10,000 m Race Walking","Ja","Gehen","Bahngehen","Lauf/Gehen","49","min","10.000 m Bahngehen",88]
["GB20","20.000 m Bahngehen","20.000m BG","20,000 m Race Walking","Ja","Gehen","Bahngehen","Lauf/Gehen","114","min","20.000 m Bahngehen",89]
["GS2","2 km Straßengehen","2km SG","2 km Road Race Walking","Ja","Gehen","Straßengehen","Lauf/Gehen","167","min","2 km Straßengehen",90]
["GS2M","2 km Straßengehen Mannschaft","2km SG M.","2 km Road Race Walking Team","Ja","Gehen","Gehen Mannschaft","Mannschaft","168","min","2 km Straßengehen Mannschaft",91]
["GS3","3 km Straßengehen","3km SG","3 km Road Race Walking","Ja","Gehen","Straßengehen","Lauf/Gehen","169","min","3 km Straßengehen",92]
["GS3M","3 km Straßengehen Mannschaft","3km SG M.","3 km Road Race Walking Team","Ja","Gehen","Gehen Mannschaft","Mannschaft","170","min","3 km Straßengehen Mannschaft",93]
["GS5","5 km Straßengehen","5km SG","5 km Road Race Walking","Ja","Gehen","Straßengehen","Lauf/Gehen","90","min","5 km Straßengehen",94]
["GS5M","5 km Straßengehen Mannschaft","5km SG M.","5 km Road Race Walking Team","Ja","Gehen","Gehen Mannschaft","Mannschaft","91","min","5 km Straßengehen Mannschaft",95]
["GS10","10 km Straßengehen","10km SG","10 km Road Race Walking","Ja","Gehen","Straßengehen","Lauf/Gehen","92","min","10 km Straßengehen",96]
["GS10M","10 km Straßengehen Mannschaft","10km SG M.","10 km Road Race Walking Team","Ja","Gehen","Gehen Mannschaft","Mannschaft","93","min","10 km Straßengehen Mannschaft",97]
["GS20","20 km Straßengehen","20km SG","20 km Road Race Walking","Ja","Gehen","Straßengehen","Lauf/Gehen","94","std","20 km Straßengehen",98]
["GS20M","20 km Straßengehen Mannschaft","20km SG M.","20 km Road Race Walking Team","Ja","Gehen","Gehen Mannschaft","Mannschaft","95","std","20 km Straßengehen Mannschaft",99]
["GS30","30 km Straßengehen","30km SG","30 km Road Race Walking","Ja","Gehen","Straßengehen","Lauf/Gehen","171","std","30 km Straßengehen",100]
["GS30M","30 km Straßengehen Mannschaft","30km SG M.","30 km Road Race Walking Team","Ja","Gehen","Gehen Mannschaft","Mannschaft","172","std","30 km Straßengehen Mannschaft",101]
["GS35","35 km Straßengehen","35km SG","35 km Road Race Walking","Ja","Gehen","Straßengehen","Lauf/Gehen","","std","35 km Straßengehen",102]
["GS35M","35 km Straßengehen Mannschaft","35km SG M.","35 km Road Race Walking Team","Ja","Gehen","Gehen Mannschaft","Mannschaft","","std","35 km Straßengehen Mannschaft",103]
["GS50","50 km Straßengehen","50km SG","50 km Road Race Walking","Ja","Gehen","Straßengehen","Lauf/Gehen","96","std","50 km Straßengehen",104]
["GS50M","50 km Straßengehen Mannschaft","50km SG M.","50 km Road Race Walking Team","Ja","Gehen","Gehen Mannschaft","Mannschaft","97","std","50 km Straßengehen Mannschaft",105]
["THOC","Hochsprung","Hoch","High jump","Ja","Hochsprung","Vertikalsprung","Sprung","50","mtr","Hochsprung",106]
["TSTA","Stabhochsprung","Stab","Pole vault","Ja","Stabhochsprung","Vertikalsprung","Sprung","51","mtr","Stabhochsprung",107]
["TWEI","Weitsprung","Weit","Long jump","Ja","Weitsprung","Horizontalsprung","Sprung","52","mtr","Weitsprung",108]
["TWEZ","Weitsprungzone","Weitzone","Long jump from zone","Ja","Weitsprung","Horizontalsprung","Sprung","63","mtr","Weitsprungzone",109]
["TDRE","Dreisprung","Dreispr.","Triple jump","Ja","Dreisprung","Horizontalsprung","Sprung","53","mtr","Dreisprung",110]
["TKUG","Kugelstoß","Kugel","Shot put","Ja","Kugelstoß","Stoß","Wurf/Stoß","","mtr","Kugelstoß",111]
["TKUG_2000","Kugelstoß 2 kg","Kugel 2","Shot put 2 kg","Ja","Kugelstoß","Stoß","Wurf/Stoß","217","mtr","Kugelstoß 2 kg",112]
["TKUG_3000","Kugelstoß 3 kg","Kugel 3","Shot put 3 kg","Ja","Kugelstoß","Stoß","Wurf/Stoß","115","mtr","Kugelstoß 3 kg",113]
["TKUG_4000","Kugelstoß 4 kg","Kugel 4","Shot put 4 kg","Ja","Kugelstoß","Stoß","Wurf/Stoß","116","mtr","Kugelstoß 4 kg",114]
["TKUG_5000","Kugelstoß 5 kg","Kugel 5","Shot put 5 kg","Ja","Kugelstoß","Stoß","Wurf/Stoß","117","mtr","Kugelstoß 5 kg",115]
["TKUG_6000","Kugelstoß 6 kg","Kugel 6","Shot put 6 kg","Ja","Kugelstoß","Stoß","Wurf/Stoß","118","mtr","Kugelstoß 6 kg",116]
["TKUG_7260","Kugelstoß 7,26 kg","Kugel 7","Shot put 7.26 kg","Ja","Kugelstoß","Stoß","Wurf/Stoß","54","mtr","Kugelstoß 7,26 kg",117]
["TGEW","Gewichtwurf","Gewicht","Weight throw","Ja","Steinstoss, Gewichtswurf","Wurf","Wurf/Stoß","","mtr","Gewichtwurf",118]
["TGEW_04000","Gewichtwurf 4 kg","Gewicht 4","Weight throw 4 kg","Ja","Steinstoss, Gewichtswurf","Wurf","Wurf/Stoß","222","mtr","Gewichtwurf 4 kg",119]
["TGEW_05450","Gewichtwurf 5,45 kg","Gewicht 5","Weight throw 5.45 kg","Ja","Steinstoss, Gewichtswurf","Wurf","Wurf/Stoß","221","mtr","Gewichtwurf 5,45 kg",120]
["TGEW_07260","Gewichtwurf 7,26 kg","Gewicht 7","Weight throw 7.26 kg","Ja","Steinstoss, Gewichtswurf","Wurf","Wurf/Stoß","220","mtr","Gewichtwurf 7,26 kg",121]
["TGEW_09080","Gewichtwurf 9,08 kg","Gewicht 9","Weight throw 9.08 kg","Ja","Steinstoss, Gewichtswurf","Wurf","Wurf/Stoß","219","mtr","Gewichtwurf 9,08 kg",122]
["TGEW_11340","Gewichtwurf 11,34 kg","Gewicht 11","Weight throw 11.34 kg","Ja","Steinstoss, Gewichtswurf","Wurf","Wurf/Stoß","218","mtr","Gewichtwurf 11,34 kg",123]
["TGEW_15880","Gewichtwurf 15,88 kg","Gewicht 15","Weight throw 15.88 kg","Ja","Steinstoss, Gewichtswurf","Wurf","Wurf/Stoß","65","mtr","Gewichtwurf 15,88 kg",124]
["TDIS","Diskuswurf","Diskus","Discus throw","Ja","Diskuswurf","Wurf","Wurf/Stoß","","mtr","Diskuswurf",125]
["TDIS_0750","Diskuswurf 0,75 kg","Diskus 0,7","Discus throw 0.75 kg","Ja","Diskuswurf","Wurf","Wurf/Stoß","119","mtr","Diskuswurf 0,75 kg",126]
["TDIS_1000","Diskuswurf 1 kg","Diskus 1,0","Discus throw 1 kg","Ja","Diskuswurf","Wurf","Wurf/Stoß","120","mtr","Diskuswurf 1 kg",127]
["TDIS_1500","Diskuswurf 1,5 kg","Diskus 1,5","Discus throw 1.5 kg","Ja","Diskuswurf","Wurf","Wurf/Stoß","121","mtr","Diskuswurf 1,5 kg",128]
["TDIS_1750","Diskuswurf 1,75 kg","Diskus 1,7","Discus throw 1.75 kg","Ja","Diskuswurf","Wurf","Wurf/Stoß","122","mtr","Diskuswurf 1,75 kg",129]
["TDIS_2000","Diskuswurf 2 kg","Diskus 2,0","Discus throw 2 kg","Ja","Diskuswurf","Wurf","Wurf/Stoß","55","mtr","Diskuswurf 2 kg",130]
["THAM","Hammerwurf","Hammer","Hammer throw","Ja","Hammerwurf","Wurf","Wurf/Stoß","","mtr","Hammerwurf",131]
["THAM_2000","Hammerwurf 2 kg","Hammer 2","Hammer throw 2 kg","Ja","Hammerwurf","Wurf","Wurf/Stoß","123","mtr","Hammerwurf 2 kg",132]
["THAM_3000","Hammerwurf 3 kg","Hammer 3","Hammer throw 3 kg","Ja","Hammerwurf","Wurf","Wurf/Stoß","124","mtr",{"$f":"B134","v":"Hammerwurf 3 kg"},{"$f":"L133+1","v":133}]
["THAM_4000","Hammerwurf 4 kg","Hammer 4","Hammer throw 4 kg","Ja","Hammerwurf","Wurf","Wurf/Stoß","125","mtr","Hammerwurf 4 kg",134]
["THAM_5000","Hammerwurf 5 kg","Hammer 5","Hammer throw 5 kg","Ja","Hammerwurf","Wurf","Wurf/Stoß","126","mtr","Hammerwurf 5 kg",135]
["THAM_6000","Hammerwurf 6 kg","Hammer 6","Hammer throw 6 kg","Ja","Hammerwurf","Wurf","Wurf/Stoß","127","mtr","Hammerwurf 6 kg",136]
["THAM_7260","Hammerwurf 7,26 kg","Hammer 7","Hammer throw 7.26 kg","Ja","Hammerwurf","Wurf","Wurf/Stoß","56","mtr","Hammerwurf 7,26 kg",137]
["TSPE","Speerwurf","Speer","Javelin throw","Ja","Speerwurf","Wurf","Wurf/Stoß","","mtr","Speerwurf",138]
["TSPE_0400","Speerwurf 400 g","Speer 400","Javelin throw 400 g","Ja","Speerwurf","Wurf","Wurf/Stoß","128","mtr","Speerwurf 400 g",139]
["TSPE_0500","Speerwurf 500 g","Speer 500","Javelin throw 500 g","Ja","Speerwurf","Wurf","Wurf/Stoß","129","mtr","Speerwurf 500 g",140]
["TSPE_0600","Speerwurf 600 g","Speer 600","Javelin throw 600 g","Ja","Speerwurf","Wurf","Wurf/Stoß","130","mtr","Speerwurf 600 g",141]
["TSPE_0700","Speerwurf 700 g","Speer 700","Javelin throw 700 g","Ja","Speerwurf","Wurf","Wurf/Stoß","131","mtr","Speerwurf 700 g",142]
["TSPE_0800","Speerwurf 800 g","Speer 800","Javelin throw 800 g","Ja","Speerwurf","Wurf","Wurf/Stoß","57","mtr","Speerwurf 800 g",143]
["TSBAL_0080","Schlagball 80 g","SBall","Ball throw (80 g)","Ja","Ballwurf","Wurf","Wurf/Stoß","59","mtr","Schlagball 80 g",144]
["TBAL_0200","Ballwurf 200 g","Ball","Ball throw (200 g)","Ja","Ballwurf","Wurf","Wurf/Stoß","58","mtr","Ballwurf 200 g",145]
["M3K","3-Kampf","3-Kampf","Triathlon","Ja","Mehrkampf","Mehrkampf","Mehrkampf","101,134,182,183,184,185,186,223,224,225,226,227,234,235,236,237,238,239,240,241,242,243,244,245,294,295,296,297,298,299,300,301,302,303,304,305,396,397,439,444,451,457","pkt","3-Kampf",146]
["M3KM","3-Kampf Mannschaft","3-K Man.","Triathlon Team","Ja","Mehrkampf","Mehrkampf Mannschaft","Mannschaft","378,383,386,389,392,393,400,404,405,410,411,412,413,414","pkt","3-Kampf Mannschaft",147]
["M4K","4-Kampf","4-Kampf","Quadrathlon","Ja","Mehrkampf","Mehrkampf","Mehrkampf","135,136,137,138,140,141,228,229,398,399","pkt","4-Kampf",148]
["M4KM","4-Kampf Mannschaft","4-K Man.","Quadrathlon Team","Ja","Mehrkampf","Mehrkampf Mannschaft","Mannschaft","390,394,395,403,408,409,415,416,417,418","pkt","4-Kampf Mannschaft",149]
["M5K","5-Kampf","5-Kampf","Pentathlon","Ja","Mehrkampf","Mehrkampf","Mehrkampf","142,143,144,145,187,188,189,246,247,248,249,250,251,252,253,254,255,256,257,282,283,284,285,286,287,288,289,290,291,292,293,306,307,308,309,310,311,312,313,314,315,316,317,354,355,356,357,358,359,360,361,362,363,364,365,440,443,445,448,452,455,458,461","pkt","5-Kampf",150]
["M5KM","5-Kampf Mannschaft","5-K Man.","Pentathlon Team","Ja","Mehrkampf","Mehrkampf Mannschaft","Mannschaft","379,384,387,401","pkt","5-Kampf Mannschaft",151]
["M7K","7-Kampf","7-Kampf","Heptathlon","Ja","Mehrkampf","Mehrkampf","Mehrkampf","147,149,150,190,191,192,258,259,260,261,262,263,264,265,266,267,268,269,366,367,368,369,370,371,372,373,374,375,376,377,441,449,456,459","pkt","7-Kampf",152]
["M7KM","7-Kampf Mannschaft","7-K Man.","Heptathlon Team","Ja","Mehrkampf","Mehrkampf Mannschaft","Mannschaft","402,406,407","pkt","7-Kampf Mannschaft",153]
["M9K","9-Kampf","9-Kampf","Enneathlon","Ja","Mehrkampf","Mehrkampf","Mehrkampf","151","pkt","9-Kampf",154]
["M9KM","9-Kampf Mannschaft","9-K Man.","Enneathlon Team","Ja","Mehrkampf","Mehrkampf Mannschaft","Mannschaft","391","pkt","9-Kampf Mannschaft",155]
["M10K","10-Kampf","10-Kampf","Decathlon","Ja","Mehrkampf","Mehrkampf","Mehrkampf","152,153,154,318,319,320,321,322,323,324,325,326,327,328,329,446,453","pkt","10-Kampf",156]
["M10KM","10-Kampf Mannschaft","10-K Man.","Decathlon Team","Ja","Mehrkampf","Mehrkampf Mannschaft","Mannschaft","380,385,388","pkt","10-Kampf Mannschaft",157]
["MBLS","Block Sprint/Sprung","Block S/S","Block Sprint/Jump","Ja","Block-Wettkämpfe","Blockwettkampf","Mehrkampf","193,194,195,196,425,426","pkt","Block Sprint/Sprung",158]
["MBLL","Block Lauf","Block L","Block Run","Ja","Block-Wettkämpfe","Blockwettkampf","Mehrkampf","197,198,199,200,427,428","pkt","Block Lauf",159]
["MBLW","Block Wurf","Block W","Block Throw","Ja","Block-Wettkämpfe","Blockwettkampf","Mehrkampf","201,202,203,204,429,430","pkt","Block Wurf",160]
["MBLM","Block Mannschaft","Block Man.","Block Team","Nein","Block-Wettkämpfe","Blockwettkampf Mannschaft","Mannschaft","","pkt","Block Mannschaft",161]
["MW5K","Wurf 5-Kampf","Wrfr 5K","Throwing Pentathlon","Ja","Mehrkampf","Wurfmehrkampf","Mehrkampf","270,271,272,273,274,275,276,277,278,279,280,281,342,343,344,345,346,347,348,349,350,351,352,353,442,447,454,460","pkt","Wurf 5-Kampf",162]
["MW5KM","Wurf 5-Kampf Mannschaft","Wrfr5K Man","Throwing Pentathlon Team","Nein","Mehrkampf","Wurfmehrkampf Mannschaft","Mannschaft","","pkt","Wurf 5-Kampf Mannschaft",163]

{"sheet":"Fehler","index":7,"n_rows":5,"n_cols":1,"rows_kept":5,"cut":false,"hidden":true,"merged":[]}
["Start der Verarbeitung: 02.11.2022 17:04:21"]
["Keine CSV Datei gefunden"]
["Fehler: 76 Pfad nicht gefunden"]
["Ende der Verarbeitung: 02.11.2022 17:06:21"]
["Laufzeit: 00:02:00"]